Cogmind - Beta 15 @@@ ROGUE MODE // 2025.10.12 @ 12:37:10 Player: shapeshifter Result: Destroyed by S-10 Pest with Light Assault Rifle Performance ------------- Evolutions (0) 0 Regions Visited (2) 400 Robots Destroyed (31) 155 Value Destroyed (888) 888 Prototype IDs (2) 40 Alien Tech Used (0) 0 Bonus (-21) -21 TOTAL SCORE: 1462 Bonus ------- Friendly Fire -21 Cogmind --------- Core Integrity 0/250 Matter 275/300 Energy 2/100 System Corruption 2% Temperature Cool (0) Movement Rolling (120) Ox1 Location -10/Subcaves Parts ------- > --- POWER (1) -------- Subdweller Power Source > --- PROPULSION (2) --- Subdweller Monowheel Subdweller Monowheel > --- UTILITY (2) ------ High-capacity Storage Unit Shield Generator > --- WEAPON (2) ------- Particle Cannon Particle Cannon > --- INVENTORY (20) --- Subdweller Monowheel Shield Generator Power Bank Subdweller Laser Subdweller Beam Cannon SUBCON Basin (Full) Peak State ------------ > --- POWER ------------ Subdweller Power Source > --- PROPULSION ------- Subdweller Monowheel Subdweller Monowheel > --- UTILITY ---------- High-capacity Storage Unit Shield Generator > --- WEAPON ----------- Particle Cannon Particle Cannon > --- INVENTORY -------- Subdweller Monowheel Shield Generator Power Bank Subdweller Laser Subdweller Beam Cannon SUBCON Basin [Rating: 32] Favorites ----------- Power Light Ion Engine Engine Light Ion Engine Propulsion Subdweller Monowheel Treads Light Treads Wheel Subdweller Monowheel Utility Seismic Detector Device Seismic Detector Storage Large Storage Unit Weapon Particle Cannon Energy Gun Small Laser Energy Cannon Particle Cannon Ballistic Gun Light Assault Rifle Build | -11 -10 -10 ------- Run | Yrd Mat Sub Slots Evolved . | . . . Power . | . . . Propulsion . | . . . Utility . | . . . Weapon . | . . . Parts Attached 36 | 6 13 17 Power 8 | 1 4 3 Engine 8 | 1 4 3 Core . | . . . Reactor . | . . . Propulsion 12 | 2 4 6 Treads 2 | 2 . . Leg . | . . . Wheel 10 | . 4 6 Hover . | . . . Flight . | . . . Utility 7 | 1 3 3 Device 3 | . 1 2 Storage 4 | 1 2 1 Processor . | . . . Hackware . | . . . Protection . | . . . Artifact . | . . . Weapon 9 | 2 2 5 Energy Gun 3 | 1 1 1 Energy Cannon 4 | . . 4 Ballistic Gun 2 | 1 1 . Ballistic Cannon . | . . . Launcher . | . . . Special Weapon . | . . . Impact Weapon . | . . . Slashing Weapon . | . . . Piercing Weapon . | . . . Special Melee Weapon . | . . . Unidentified Prototypes . | . . . Parts Lost 12 | . 5 7 Power 4 | . 3 1 Propulsion 4 | . 1 3 Utility 1 | . . 1 Weapon 3 | . 1 2 Highest Loss Streak 5 | . 2 5 To Critical Strikes . | . . . Average Backups 9 | 3 8 11 Power . | . . . Propulsion 1 | 1 1 . Utility 5 | . 3 6 Weapon 3 | . 2 3 Tool/Special . | . . . Unused Backups 11 | . . 11 Power . | . . . Propulsion 1 | . . 1 Utility 7 | . . 7 Weapon 3 | . . 3 Tool/Special . | . . . Average Slot Usage (%) 97 | . 97 97 Engine 13 | . 13 13 Treads 8 | . 16 . Wheel 18 | . 9 27 Device 13 | . 13 13 Storage 14 | . 14 14 Energy Gun 7 | . 13 . Energy Cannon 13 | . . 25 Ballistic Gun 7 | . 14 . Peak Build Rating 32 | 6 9 32 Average Rating 12 | 4 7 18 On Entrance 5 | . 6 9 Naked Turns . | . . . Heaviest Build 55 | 10 28 55 Greatest Support 40 | 40 40 40 Greatest Overweight (x) 3 | . 1 3 Average Overweight (x) . | . . . Largest Inventory Capacity 20 | 8 15 20 Average Capacity 13 | 7 11 17 Most Carried 20 | 7 13 20 Average Carried 11 | 4 8 14 Final Capacity 20 | 8 15 20 Final Carried 20 | 7 13 20 Class Distribution -------------------- 88% | Mutant 11% | Scavenger-Mutant Dominant Class ---------------- Mutant | -10/Materials Mutant | -10/Subcaves Resources | -11 -10 -10 ----------- Run | Yrd Mat Sub Matter Collected 603 | 266 193 144 Remotely . | . . . Salvage Created 1206 | 86 678 442 Parts 82 | 11 39 32 Haulers Intercepted 1 | . 1 . Recyclers Shooed 1 | 1 . . Parts Field Recycled . | . . . Retrieved Matter . | . . . Parts Self-Destructed 12 | . . 12 Prevented . | . . . Kills | -11 -10 -10 ------- Run | Yrd Mat Sub Combat Hostiles Destroyed 25 | . 16 9 Guns 17 | . 16 1 Cannons 8 | . . 8 Classes Destroyed 8 | 2 5 1 Builder 1 | . 1 . Tunneler 2 | 2 . . Hauler 1 | . 1 . Recycler 1 | 1 . . Watcher 1 | . 1 . Swarmer 3 | . 3 . Grunt 13 | . 13 . Subdweller 9 | . . 9 Best Kill Streak 3 | 3 3 3 Combat Bots Only 3 | . 3 3 Max Kills in Single Turn 1 | 1 1 1 Gunslinging . | . . . Exploded . | . . . Melee . | . . . Uniques/NPCs Destroyed . | . . . Combat | -11 -10 -10 -------- Run | Yrd Mat Sub Hostile Shots Fired 170 | . 105 65 Missed 44 | . 31 13 Hits 126 | . 74 52 Projectile 126 | . 74 52 Damage Taken 1654 | . 847 807 Core 253 | . 133 120 Absorbed by Shields 106 | . . 106 Core Remaining (%) 100 | 100 . . Volleys Fired 127 | 6 77 44 Largest 2 | 2 2 2 Hottest 136 | 60 60 136 Shots Fired 239 | 12 153 74 Gun 178 | 12 153 13 Cannon 61 | . . 61 Launcher . | . . . Special . | . . . Kinetic 83 | 6 77 . Thermal 145 | 6 76 63 Explosive . | . . . Electromagnetic 11 | . . 11 Robot Hit Streak 12 | 3 10 12 Robot Miss Streak 6 | 1 6 3 Penetration Max . | . . . Secondary Targets 4 | . 4 . Max Gunslinging Chain 1 | . 1 . Shots Hit Robots 143 | 7 89 47 Core Hits 57 | 4 37 16 Critical Kills . | . . . Critical Parts Destroyed 2 | . 2 . Critical Strikes 3 | . 2 1 Destroy 2 | . 2 . Corrupt 1 | . . 1 Melee Attacks . | . . . Impact . | . . . Slashing . | . . . Piercing . | . . . Sneak Attacks . | . . . Combat Hostiles . | . . . Follow-up Attacks . | . . . Damage Inflicted 1761 | 73 853 835 Guns 1023 | 73 853 97 Cannons 738 | . . 738 Explosions . | . . . Melee . | . . . Ramming . | . . . Kinetic 447 | 29 418 . Thermal 1229 | 44 435 750 Explosive . | . . . Electromagnetic 85 | . . 85 Impact . | . . . Slashing . | . . . Piercing . | . . . Highest Corruption 2 | . 2 2 Average Corruption 2 | . 2 2 Corruption Purged . | . . . Corruption Blocked . | . . . Effects 17 | . 3 14 Message Errors 4 | . 2 2 Matter Fused 2 | . . 2 Heat Flow Errors 2 | . . 2 Energy Discharges 3 | . . 3 Data Loss (minor) 2 | . . 2 Misfires 3 | . 1 2 Alerts 1 | . . 1 Overload Shots . | . . . Overflow Damage . | . . . Projectiles . | . . . Explosions . | . . . Melee . | . . . Knockbacks . | . . . Impact . | . . . Kinetic . | . . . Secondary . | . . . Self-Inflicted Damage . | . . . Shots . | . . . Rammed . | . . . Targets Rammed . | . . . Kicked . | . . . Crushed . | . . . Highest Temperature 246 | 20 132 246 Average Temperature 45 | 14 43 56 Received Heat Transfer 579 | . 384 195 Siege Activations . | . . . Martial Activations . | . . . Shielding Activations . | . . . Robots Disrupted . | . . . Combat Hostiles . | . . . Robots Corrupted . | . . . Combat Hostiles . | . . . Parts Fried . | . . . Impact Corruptions . | . . . Robots Melted . | . . . Combat Hostiles . | . . . Parts Melted 2 | . . 2 Heat Transferred 2457 | 100 1000 1357 Parts Sabotaged . | . . . Parts Stolen . | . . . Parts Stripped . | . . . Power Chain Reactions . | . . . Alert | -11 -10 -10 ------- Run | Yrd Mat Sub Maximum Alert Level . | . . . Low Security (%) 100 | 100 100 . Level 1 . | . . . Level 2 . | . . . Level 3 . | . . . Level 4 . | . . . Level 5 . | . . . High Security . | . . . Max Security . | . . . Peak Influence 199 | 5 199 . Initial . | . . . Average 50 | 1 56 . Influence Increases 539 | 15 524 . Destroy 0b10 Robot/C 320 | . 320 . Destroy 0b10 Robot/NC 30 | 15 15 . Destroy Leader 74 | . 74 . Successful Hack 55 | . 55 . Select Force Hacks 60 | . 60 . Influence Decreases 539 | 15 343 181 Entered New Map 88 | . . 88 Time Decay 361 | 15 303 43 Lost Part 90 | . 40 50 Squads Dispatched 6 | . 6 . Investigation 4 | . 4 . Extermination . | . . . Reinforcement 2 | . 2 . Assault . | . . . Garrison . | . . . Intercept . | . . . Searches Triggered . | . . . Construction Impeded . | . . . Haulers Reinforced . | . . . Active Scanning Responses . | . . . Cargo Convoy Interrupts . | . . . Stealth | -11 -10 -10 --------- Run | Yrd Mat Sub Distress Signals . | . . . Communications Jammed . | . . . Distress Signals . | . . . Times Spotted 40 | . 25 15 Peak Tracking Total 5 | . 3 5 Tactical Retreats . | . . . Traps | -11 -10 -10 ------- Run | Yrd Mat Sub Traps Triggered 3 | . 3 . Indirectly . | . . . Trap Hack Attempts . | . . . Triggered . | . . . Disarmed . | . . . Reprogrammed . | . . . Reused . | . . . Traps Extracted . | . . . Installed 1 | . . 1 Triggered . | . . . Machines | -11 -10 -10 ---------- Run | Yrd Mat Sub Machines Disabled . | . . . Max in Single Turn . | . . . Machines Repaired . | . . . Machines Dismantled . | . . . Machines Sabotaged . | . . . Overloaded Fab Kills . | . . . Hacking | -11 -10 -10 --------- Run | Yrd Mat Sub Machines Accessed 10 | . 8 2 Terminals 6 | . 6 . Fabricators . | . . . Repair Stations . | . . . Recycling Units 2 | . 2 . Scanalyzers . | . . . Garrison Access . | . . . Total Hacks 37 | . 35 2 Successful 25 | . 23 2 Failed 12 | . 12 . Catastrophic 1 | . 1 . Database Lockouts . | . . . Manual 30 | . 30 . Terminals 29 | . 29 . Fabricators . | . . . Repair Stations . | . . . Recycling Units 6 | . 6 . Scanalyzers . | . . . Garrison Access . | . . . Terminal Hacks 10 | . 8 2 Robot Analysis 1 | . 1 . Prototype ID Bank 1 | . 1 . Open Door 1 | . . 1 Registered Components 3 | . 3 . Zone Layout 3 | . 3 . Release Object 1 | . . 1 Fabricator Hacks . | . . . Repair Station Hacks . | . . . Recycling Unit Hacks 2 | . 2 . Retrieve Components 2 | . 2 . Scanalyzer . | . . . Garrison Access Hacks . | . . . Unauthorized Hacks 13 | . 13 . Terminals 11 | . 11 . Botnet 5 | . 5 . Skim 6 | . 6 . Fabricators . | . . . Repair Stations . | . . . Recycling Units 2 | . 2 . Tunnel 2 | . 2 . Scanalyzers . | . . . Garrison Access . | . . . Data Cores Recovered . | . . . Used . | . . . Hacking Detections 7 | . 7 . Full Trace Events . | . . . Feedback Events . | . . . Feedback Blocked . | . . . Robot Schematics Acquired . | . . . Robots Built . | . . . Authchips . | . . . Time . | . . . Total Robot Build Rating . | . . . Part Schematics Acquired . | . . . Parts Built . | . . . Authchips . | . . . Time . | . . . Total Part Build Rating . | . . . Parts Repaired . | . . . Time . | . . . Parts Recycled . | . . . Recycled Matter . | . . . Retrieved Matter . | . . . Retrieved Components 16 | . 16 . Parts Scanalyzed . | . . . Part Schematics Acquired . | . . . Parts Damaged . | . . . Bothacking | -11 -10 -10 ------------ Run | Yrd Mat Sub Used RIF Installer . | . . . Robots Hacked . | . . . Non-combat . | . . . Combat . | . . . Robot Hacks Applied . | . . . Relay Couplers Released . | . . . Fabnet Peak Effective % . | . . . Robots Rewired . | . . . Allies Hacked . | . . . Hacks Repelled . | . . . Allies | -11 -10 -10 -------- Run | Yrd Mat Sub Total Allies . | . . . Largest Group . | . . . Highest-Rated Group . | . . . Highest-Rated Ally . | . . . Total Orders . | . . . Ally Attacks . | . . . Total Damage . | . . . Kills . | . . . Allies Corrupted . | . . . Allies Melted 1 | . . 1 Intel | -11 -10 -10 ------- Run | Yrd Mat Sub Active Infowar (turns) 1303 | . 1026 277 Optics 242 | . . 242 Seismic 1061 | . 1026 35 Robot Analysis Total 1 | . 1 . Derelict Logs Recovered . | . . . Drone Launches . | . . . Drone Recoveries . | . . . Exploration | -11 -10 -10 ------------- Run | Yrd Mat Sub Turns Passed 2276 | 139 1067 1070 Spaces Moved 1467 | 76 629 762 Core 16 | 16 . . Treads 381 | 60 321 . Legs . | . . . Wheels 1070 | . 308 762 Hover . | . . . Flight . | . . . Fastest Speed 50 | 50 80 95 Average Speed 120 | 136 126 113 Slowest Speed 160 | 160 160 125 Overloaded Moves . | . . . Propulsion Burnouts . | . . . Robots Hopped . | . . . Potential Cave-ins . | . . . Cave-ins Triggered . | . . . Exploration Rate (%) 48 | 5 97 43 Regions Visited 2 Branch Regions 1 Pre-discovered Areas 2 | . 2 . Known Exits Taken . | . . . Unknown Exits Taken 2 | 1 1 . Scrap Searched . | . . . Spaces Dug . | . . . Terrain Destroyed . | . . . Melee . | . . . Projectile . | . . . AOE . | . . . Terrain Rammed . | . . . Walls Destroyed . | . . . Machines Disabled . | . . . Actions | -11 -10 -10 --------- Run | Yrd Mat Sub Total 1765 | 100 762 903 Wait 63 | . 19 44 Move 1465 | 75 628 762 Hop . | . . . Pick Up 48 | 13 18 17 Fast Attach . | . . . Attach 24 | 6 7 11 Detach . | . . . Swap 13 | . 6 7 Drop 24 | . 7 17 Fire 127 | 6 77 44 Melee . | . . . Ram . | . . . Kick . | . . . Crush . | . . . Escape Stasis . | . . . Rewire . | . . . Trap 1 | . . 1 Miscellaneous . | . . . Route ------- -11/Scrapyard -10/Materials (discovered 6 exits: [*Mat x3] / [*Min x2] / *Sub) -10/Subcaves History --------- Turn | Location | Event 3 | -11/Scrapyard | Discovered new exit (range 15) 140 | -11/Scrapyard | Entered Materials 231 | -10/Materials | Discovered new exit (range 14) 316 | -10/Materials | Build established: Mutant 488 | -10/Materials | Discovered new exit (range 15) 577 | -10/Materials | Discovered new exit (range 14) 640 | -10/Materials | Derelicts attacked the area 848 | -10/Materials | Discovered new exit (range 10) 967 | -10/Materials | Discovered new exit (range 8) 1053 | -10/Materials | Discovered new exit (range 5) 1059 | -10/Materials | Core integrity fell below 50% 1194 | -10/Materials | Loaded intel: 8 trap records 1206 | -10/Materials | Learned 4 Subcaves zone layouts 1207 | -10/Materials | Entered Subcaves 1208 | -10/Subcaves | Approached by a straggling Scientist 1287 | -10/Subcaves | Lost 5 parts (1p1n1u2w) 1331 | -10/Subcaves | A Subdweller sparked back to life 1331 | -10/Subcaves | A Subdweller sparked back to life 1376 | -10/Subcaves | Found Prototype Device 1565 | -10/Subcaves | Shifting Twisted Machinery released Sub. Laser 1889 | -10/Subcaves | Core integrity fell below 20% 2045 | -10/Subcaves | Found SUBCON Basin 2277 | -10/Subcaves | Destroyed by S-10 Pest with Light Assault Rifle Last Messages --------------- Ejecting SUBCON Basin... Delivery behind schedule, handle with care! 02036_ Dropped Imp. Terrain Scanner. 02037_ Dropped Sub. Optics. 02037_ Dropped Lrg. Storage Unit. 02038_ Dropped Disposable Heat Sink. 02040_ Dropped Sub. Monowheel. 02040_ Dropped Tractor Beam. 02041_ Dropped Hvy. Hammer. 02043_ Dropped Particle Cannon. 02043_ Dropped Lrg. Battery. 02044_ Dropped Sub. Optics. 02045_ Acquired SUBCON Basin. 02048_ Extracted 2 energy. 02065_ #S Q BQCBKED73LUFKO 3LOFC 02067_ G4-QL9(u) tweaks Twisted Machinery. 02102_ Sub. Power Source shoots sparks and powers down. 02117_ G4-QL9(u) tweaks Twisted Machinery. 02200_ System corrupted: Energy discharge (-36). 02277_ System corrupted: Matter fused (-5). Map ----- +----------------------------------------------------+ | ???????????????????????###?# ##???????????????? | | ???????????????????????# #?# #???????????????? | | ??????????????????????? ### #???????????????? | | ??????????????????????? ### #???????????????? | | ??????????????????????? #???????????????? | | ??????????????????????? #??????????####?? | | ??????????????????????? # # ##??????????# " ?? | | ??????????????????????? ## # #???????????### ?? | | ??????????????????????? # #####???????????#"""?? | | ??????????????????????? ##??????????????#"""?? | | ????# #??## ?? ??????????????????????? | | ????# #???##?? ??????????????????????? | | ????# ##????#?? ??????????????????????? | | ????## ###???###?? ??????????????????????? | | ?????## ##?#### ### ??????????????????????? | | ??????## ### ## ??????????????????????? | | ???????# ## ??????????????????????? | | ???????# ## ??????????????????????? | | ??????## ### ????#?????????????????? | | ????### ## ### ??? #?????????????????? | | ????# ## ### #?? ##????????????????? | | ????## #?#### ### #????##??????????? | | ?????## ######## ### #??????????? | | ??????## #### #???????????? | | ???????## ## #????????????? | | ????????# ##@ #?????????????? | | ????????# ##s #??????????????? | | ????????# ### s ####??????????????? | | ????????###?## ### s ###?????????????????? | | ?????###?????# ##?# ##???????????????????? | | ????## ##????## #?## ## #?????????????????? | | ????# #?????###### #????????????????? | | ????# ####?????## ##### ???????????? | | ????# #?????# ###### ????????????? | | ????## ##?????# #? # # #?????????????? | | ?????????######### ##?# #?#???????????????? | | ???????? # #???##?????????????????? | | ???????? ###????????????????????? | | ???????? #????????????????????? | | ?????????# ### #????????????????????? | | ?????????######### #????????????????????? | | ?????????# ## ## #####????????????????????? | | ?????????? # #????????????????????????? | | ??????????? # ##????????????????????????? | | ??????????# # # ## #?????????????????????????? | | ????????????## ?# #?????????????????????????? | | ?????????????## ## #?????????????????????????? | | ????#?#????### ###?????????????????????????? | | ?? ### ##???????????????????????????? | | ?? ##????????????????????????????? | +----------------------------------------------------+ Best States ------------- Heat Dissipation 25 Energy Generation 15 Energy Capacity 250 Matter Stores 300 Matter Capacity 300 Sight Range 21 Terrain Scan Density 10 Evasion (%) 50 Recoil Reduction 2 Item Schematics ----------------- None Robot Schematics ------------------ None Fabricated ------------ Nothing Repaired ---------- Nothing Alien Tech Used ----------------- None Achievements -------------- None Challenges ------------ None Game ------ Seed TowerIntegrityInsulator Manual? 0 Play Time 00:15:30 Cumulative 372.7 hours Start 2025.10.12 @ 12:24:08 End 2025.10.12 @ 12:37:10 Sessions 1 Manual Loads 0 Difficulty Rogue Special Mode None Game No. 490 Rogue 490 Adventurer 0 Explorer 0 Win Type - Total 11 Types 6/0/1/2/1/0/1/0/0/0 Lore% 87 Gallery% 83 Achievement% 70 Wizard Run 0 Options --------- Layout 0 ASCII 0 Keyboard 0 Movement Mouse Keybinds 0 Fullscreen 1 Font 24/Tamsyn Map View 76x50 Zoom Use 0% Tactical HUD 1 Map Filters NONE Filters NONE Steam 1 RUN: 97c8a53f-56da-4380-9d15-4ba4696c88fe